fUST/lending_fUST_20240704
["ID","MTS","AMOUNT","RATE_DAILY","PERIOD"]
[331075949,1720066237801,-1268.06,0.00014284,2]
[331075950,1720066237819,-2393.91,0.00014284,2]
[331075951,1720066237833,-640.92,0.00014284,2]
[331075952,1720066237844,-160.67330763,0.00014284,2]
[331075953,1720066237854,-79310.5172155,0.00014285,2]
[331075954,1720066237865,-79310.5172155,0.0001429,2]
[331075955,1720066237876,-523.46,0.0001429,2]
[331075956,1720066237886,-500.0,0.0001429,2]
[331075957,1720066237896,-8925.03,0.0001429,2]
[331075958,1720066237906,-21725.55891234,0.00014291,2]
[331075959,1720066237916,-158621.034431,0.00014292,2]
[331075960,1720066238112,-500.0,0.00014295,2]
[331075961,1720066238122,-500.0,0.00014295,2]
[331075962,1720066238132,-957.95,0.00014295,2]
[331075963,1720066238142,-558.76941298,0.00014295,2]
[331075964,1720066238152,-500.0,0.00014295,2]
[331075965,1720066238162,-500.0,0.00014295,2]
[331075966,1720066238172,-500.0,0.00014295,2]
[331075967,1720066238182,-500.0,0.00014295,2]
[331075968,1720066238192,-500.0,0.00014295,2]
[331075969,1720066238202,-1406.69,0.00014295,2]
[331075970,1720066238211,-500.0,0.00014295,2]
[331075971,1720066238221,-500.0,0.00014295,2]
[331075972,1720066238230,-273.43617577,0.00014295,2]
[331075973,1720066238240,-500.0,0.00014295,2]
[331075974,1720066238249,-370.36095955,0.00014295,2]
[331075975,1720066238259,-500.0,0.00014295,2]
[331075976,1720066238268,-801.08,0.00014295,2]
[331075977,1720066238278,-500.0,0.00014295,2]
[331075978,1720066238288,-1167.61,0.00014295,2]
[331075979,1720066238298,-503.65186447,0.00014295,2]
[331075980,1720066238308,-504.72112275,0.00014295,2]
[331075981,1720066238319,-251.08887241,0.00014295,2]
[331075982,1720066238328,-500.0,0.00014295,2]
[331075983,1720066238337,-505.03447168,0.00014295,2]
[331075984,1720066238347,-631.82353349,0.00014295,2]
[331075985,1720066238357,-500.0,0.00014295,2]
[331075986,1720066238367,-503.19946116,0.00014295,2]
[331075987,1720066238377,-709.23,0.00014295,2]
[331075988,1720066238386,-500.0,0.00014295,2]
[331075989,1720066238396,-503.34185757,0.00014295,2]
[331075990,1720066238406,-500.0,0.00014295,2]
[331075991,1720066238415,-500.0,0.00014295,2]
[331075992,1720066238425,-503.74093966,0.00014295,2]
[331075993,1720066238434,-504.74927562,0.00014295,2]
[331075994,1720066238443,-506.81045856,0.00014295,2]
[331075995,1720066238453,-504.90281223,0.00014295,2]
[331075996,1720066238462,-616.88,0.00014295,2]
[331075997,1720066238472,-500.0,0.00014295,2]
[331075998,1720066238482,-500.0,0.00014295,2]
[331075999,1720066238491,-500.0,0.00014295,2]
[331076000,1720066238501,-500.0,0.00014295,2]
[331076001,1720066238510,-500.0,0.00014295,2]
[331076002,1720066238519,-500.0,0.00014295,2]
[331076003,1720066238528,-500.0,0.00014295,2]
[331076004,1720066238537,-500.0,0.00014295,2]
[331076005,1720066238547,-500.0,0.00014295,2]
[331076006,1720066238557,-500.0,0.00014295,2]
[331076007,1720066238567,-500.0,0.00014295,2]
[331076008,1720066238577,-500.0,0.00014295,2]
[331076009,1720066238590,-500.0,0.00014295,2]
[331076010,1720066238603,-500.0,0.00014295,2]
[331076011,1720066238613,-500.0,0.00014295,2]
[331076012,1720066238623,-500.0,0.00014295,2]
[331076013,1720066238632,-681.51,0.00014295,2]
[331076014,1720066238642,-500.0,0.00014295,2]
[331076015,1720066238653,-500.0,0.00014295,2]
[331076016,1720066238663,-500.0,0.00014295,2]
[331076017,1720066238673,-500.0,0.00014295,2]
[331076018,1720066238684,-500.0,0.00014295,2]
[331076019,1720066238695,-770.25,0.00014295,2]
[331076020,1720066238704,-507.39189646,0.00014295,2]
[331076021,1720066238713,-500.0,0.00014295,2]
[331076022,1720066238723,-545.82,0.00014295,2]
[331076023,1720066238733,-563.78328582,0.00014295,2]
[331076024,1720066238742,-500.0,0.00014295,2]
[331076025,1720066238752,-500.0,0.00014295,2]
[331076026,1720066238761,-500.0,0.00014295,2]
[331076027,1720066238771,-500.0,0.00014295,2]
[331076028,1720066238781,-500.0,0.00014295,2]
[331076029,1720066238791,-500.0,0.00014295,2]
[331076030,1720066238802,-500.0,0.00014295,2]
[331076031,1720066238811,-500.0,0.00014295,2]
[331076032,1720066238821,-500.0,0.00014295,2]
[331076033,1720066238831,-488.16182448,0.00014295,2]
[331076034,1720066238840,-500.0,0.00014295,2]
[331076035,1720066238850,-631.77,0.00014295,2]
[331076036,1720066238859,-500.0,0.00014295,2]
[331076037,1720066238868,-500.0,0.00014295,2]
[331076038,1720066238878,-500.0,0.00014295,2]
[331076039,1720066238888,-500.0,0.00014295,2]
[331076040,1720066238897,-500.0,0.00014295,2]
[331076041,1720066238906,-500.0,0.00014295,2]
[331076042,1720066238916,-500.0,0.00014295,2]
[331076043,1720066238925,-720.17,0.00014295,2]
[331076044,1720066238935,-500.0,0.00014295,2]
[331076045,1720066238944,-1764.32,0.00014295,2]
[331076046,1720066238953,-500.0,0.00014295,2]
[331076047,1720066238962,-500.0,0.00014295,2]
[331076048,1720066238972,-500.0,0.00014295,2]
[331076049,1720066238981,-500.0,0.00014295,2]
[331076050,1720066238991,-2011.52,0.00014295,2]
[331076051,1720066239000,-500.0,0.00014295,2]
[331076052,1720066239010,-1007.7,0.00014295,2]
[331076053,1720066239020,-500.0,0.00014295,2]
[331076054,1720066239029,-196.72643893,0.00014295,2]
[331076055,1720066239039,-500.0,0.00014295,2]
[331076056,1720066239050,-515.44510563,0.00014295,2]
[331076057,1720066239060,-704.76,0.00014295,2]
[331076058,1720066239070,-500.0,0.00014295,2]
[331076059,1720066239080,-500.0,0.00014295,2]
[331076060,1720066239090,-1441.08,0.00014295,2]
[331076061,1720066239099,-855.47,0.00014295,2]
[331076062,1720066239109,-500.0,0.00014295,2]
[331076063,1720066239118,-508.90970429,0.00014295,2]
[331076064,1720066239127,-647.17,0.00014295,2]
[331076065,1720066239137,-500.0,0.00014295,2]
[331076066,1720066239147,-500.0,0.00014295,2]
[331076068,1720066239158,-3608.51,0.00014295,2]
[331076070,1720066239168,-500.0,0.00014295,2]
[331076071,1720066239178,-500.0,0.00014295,2]
[331076072,1720066239188,-500.0,0.00014295,2]
[331076073,1720066239198,-500.0,0.00014295,2]
[331076074,1720066239208,-500.0,0.00014295,2]
[331076075,1720066239218,-500.0,0.00014295,2]
[331076076,1720066239228,-500.0,0.00014295,2]
[331076077,1720066239237,-500.0,0.00014295,2]
[331076078,1720066239247,-500.0,0.00014295,2]
[331076079,1720066239256,-500.0,0.00014295,2]
[331076080,1720066239267,-500.0,0.00014295,2]
[331076081,1720066239277,-500.0,0.00014295,2]
[331076082,1720066239287,-500.0,0.00014295,2]
[331076083,1720066239298,-500.0,0.00014295,2]
[331076084,1720066239308,-503.56208392,0.00014295,2]
[331076085,1720066239320,-511.3427263,0.00014295,2]
[331076086,1720066239330,-500.0,0.00014295,2]
[331076088,1720066239341,-510.13932825,0.00014295,2]
[331076089,1720066239351,-500.0,0.00014295,2]
[331076090,1720066239361,-500.0,0.00014295,2]
[331076091,1720066239371,-500.0,0.00014295,2]
[331076092,1720066239380,-500.0,0.00014295,2]
[331076093,1720066239392,-1216.88,0.00014295,2]
[331076094,1720066239402,-500.0,0.00014295,2]
[331076095,1720066239412,-500.0,0.00014295,2]
[331076096,1720066239422,-504.04495603,0.00014295,2]
[331076098,1720066239432,-500.0,0.00014295,2]
[331076100,1720066239442,-778.7,0.00014295,2]
[331076102,1720066239452,-500.0,0.00014295,2]
[331076104,1720066239463,-507.99358033,0.00014295,2]
[331076106,1720066239473,-3668.47,0.00014295,2]
[331076108,1720066239483,-500.0,0.00014295,2]
[331076110,1720066239493,-521.38,0.00014295,2]
[331076112,1720066239503,-2207.54,0.00014295,2]
[331076114,1720066239513,-290.09242498,0.00014295,2]
[331076116,1720066239523,-500.0,0.00014295,2]
[331076118,1720066239533,-500.0,0.00014295,2]
[331076120,1720066239543,-500.0,0.00014295,2]
[331076122,1720066239553,-500.0,0.00014295,2]
[331076124,1720066239564,-500.0,0.00014295,2]
[331076126,1720066239580,-79310.5172155,0.00014297,2]
[331076128,1720066239591,-418.94298943,0.000143,2]
[331076129,1720066239606,-500.0,0.000143,2]
[331076130,1720066239616,-555.06375848,0.000143,2]
[331076131,1720066239626,-196.87128302,0.000143,2]
[331076132,1720066239636,-577.92,0.000143,2]
[331076133,1720066239647,-500.0,0.000143,2]
[331076134,1720066239657,-500.0,0.000143,2]
[331076135,1720066239668,-500.0,0.000143,2]
[331076136,1720066239679,-500.0,0.000143,2]
[331076138,1720066239691,-273.26497135,0.000143,2]
[331076140,1720066239701,-500.0,0.000143,2]
[331076142,1720066239711,-500.0,0.000143,2]
[331076144,1720066239721,-500.0,0.000143,2]
[331076146,1720066239731,-500.0,0.000143,2]
[331076148,1720066239741,-441.1317508,0.000143,2]
[331076150,1720066239751,-500.0,0.000143,2]
[331076152,1720066239760,-500.0,0.000143,2]
[331076154,1720066239770,-357.72624738,0.000143,2]
[331076156,1720066239780,-500.0,0.000143,2]
[331076158,1720066239790,-500.0,0.000143,2]
[331076160,1720066239802,-500.0,0.000143,2]
[331076162,1720066239812,-500.0,0.000143,2]
[331076164,1720066239823,-500.0,0.000143,2]
[331076166,1720066239834,-500.0,0.000143,2]
[331076168,1720066239844,-500.0,0.000143,2]
[331076170,1720066239854,-500.0,0.000143,2]
[331076172,1720066239864,-500.0,0.000143,2]
[331076174,1720066239874,-500.0,0.000143,2]
[331076176,1720066239884,-500.0,0.000143,2]
[331076179,1720066239894,-500.0,0.000143,2]
[331076181,1720066239904,-500.0,0.000143,2]
[331076183,1720066239915,-500.0,0.000143,2]
[331076185,1720066239924,-500.0,0.000143,2]
[331076187,1720066239934,-500.0,0.000143,2]
[331076190,1720066239954,-500.0,0.00014301,2]
[331076192,1720066239964,-181.04505831,0.00014301,2]
[331076194,1720066239974,-505.28198006,0.00014301,2]
[331076196,1720066239984,-500.0,0.00014301,2]
[331076198,1720066239994,-500.0,0.00014301,2]
[331076200,1720066240004,-8891.61,0.00014301,2]
[331076202,1720066240014,-188.04326466,0.00014306,2]
[331076204,1720066240023,-571.80783564,0.00014306,2]
[331076206,1720066240033,-500.0,0.00014306,2]
[331076208,1720066240043,-500.0,0.00014306,2]
[331076210,1720066240053,-500.0,0.00014306,2]
[331076212,1720066240063,-500.0,0.00014306,2]
[331076214,1720066240076,-500.0,0.00014306,2]
[331076216,1720066240086,-500.0,0.00014306,2]
[331076218,1720066240096,-500.0,0.00014306,2]
[331076221,1720066240106,-500.0,0.00014306,2]
[331076223,1720066240119,-500.0,0.00014306,2]
[331076225,1720066240128,-500.0,0.00014306,2]
[331076226,1720066240138,-500.0,0.00014306,2]
[331076228,1720066240148,-577.31,0.00014306,2]
[331076230,1720066240159,-500.0,0.00014306,2]
[331076233,1720066240170,-500.0,0.00014306,2]
[331076235,1720066240180,-500.0,0.00014306,2]
[331076237,1720066240190,-684.73,0.00014306,2]
[331076238,1720066240200,-491.81,0.00014306,2]
[331076240,1720066240210,-500.0,0.00014306,2]
[331076242,1720066240220,-500.0,0.00014306,2]
[331076244,1720066240231,-500.0,0.00014306,2]
[331076245,1720066240241,-500.0,0.00014306,2]
[331076246,1720066240251,-729.62,0.00014306,2]
[331076248,1720066240261,-500.0,0.00014306,2]
[331076250,1720066240270,-562.1,0.00014306,2]
[331076251,1720066240280,-757.94,0.00014306,2]
[331076253,1720066240290,-500.0,0.00014306,2]
[331076254,1720066240299,-500.0,0.00014306,2]
[331076255,1720066240308,-500.0,0.00014306,2]
[331076256,1720066240320,-500.0,0.00014306,2]
[331076257,1720066240329,-500.0,0.00014306,2]
[331076258,1720066240339,-503.8136064,0.00014306,2]
[331076259,1720066240348,-500.0,0.00014306,2]
[331076260,1720066240358,-500.0,0.00014306,2]
[331076261,1720066240367,-500.0,0.00014307,2]
[331076262,1720066240377,-500.0,0.00014307,2]
[331076263,1720066240386,-500.0,0.00014307,2]
[331076264,1720066240395,-2067.31,0.00014307,2]
[331076265,1720066240405,-5865.12,0.00014307,2]
[331076266,1720066240414,-526.05212795,0.00014307,2]
[331076267,1720066240424,-1025.49,0.00014307,2]
[331076268,1720066240434,-2627.63,0.00014307,2]
[331076269,1720066240443,-500.0,0.00014307,2]
[331076270,1720066240456,-640.11,0.00014307,2]
[331076271,1720066240465,-964.57,0.00014307,2]
[331076272,1720066240474,-6242.51,0.00014307,2]
[331076273,1720066240484,-934.49864369,0.0001447,2]
[331076274,1720066240493,-500.0,0.00014558,2]
[331076275,1720066240502,-1593.08,0.00014558,2]
[331076276,1720066240511,-10509.41,0.00014558,2]
[331076277,1720066240521,-1268.06,0.00014558,2]
[331076278,1720066240530,-2393.91,0.00014558,2]
[331076279,1720066240540,-640.92,0.00014558,2]
[331076280,1720066240550,-523.46,0.00014564,2]
[331076281,1720066240559,-500.0,0.00014564,2]
[331076282,1720066240570,-8925.03,0.00014564,2]
[331076283,1720066240579,-877.0,0.00014567,2]
[331076284,1720066240588,-618.30367312,0.00014569,2]
[331076285,1720066240598,-500.0,0.00014569,2]
[331076286,1720066240612,-957.95,0.00014569,2]
[331076287,1720066240621,-289.98546651,0.00014569,2]
[331076288,1720066240631,-500.0,0.00014569,2]
[331076289,1720066240640,-500.0,0.00014569,2]
[331076290,1720066240650,-500.0,0.00014569,2]
[331076291,1720066240660,-500.0,0.00014569,2]
[331076292,1720066240669,-1406.69,0.00014569,2]
[331076293,1720066240678,-500.0,0.00014569,2]
[331076294,1720066240691,-500.0,0.00014569,2]
[331076295,1720066240701,-500.0,0.00014569,2]
[331076296,1720066240710,-500.0,0.00014569,2]
[331076297,1720066240719,-801.08,0.00014569,2]
[331076298,1720066240728,-500.0,0.00014569,2]
[331076299,1720066240738,-1167.61,0.00014569,2]
[331076300,1720066240748,-500.0,0.00014569,2]
[331076301,1720066240757,-500.0,0.00014569,2]
[331076302,1720066240767,-709.23,0.00014569,2]
[331076303,1720066240777,-500.0,0.00014569,2]
[331076304,1720066240786,-500.0,0.00014569,2]
[331076305,1720066240796,-616.88,0.00014569,2]
[331076306,1720066240806,-500.0,0.00014569,2]
[331076307,1720066240815,-237.31629217,0.00014569,2]
[331076308,1720066240825,-500.0,0.00014569,2]
[331076309,1720066240835,-500.0,0.00014569,2]
[331076310,1720066240844,-500.0,0.00014569,2]
[331076311,1720066240854,-500.0,0.00014569,2]
[331076312,1720066240863,-500.0,0.00014569,2]
[331076313,1720066240872,-500.0,0.00014569,2]
[331076314,1720066240881,-500.0,0.00014569,2]
[331076315,1720066240891,-500.0,0.00014569,2]
[331076316,1720066240901,-642.19539709,0.00014569,2]
[331076317,1720066240910,-500.0,0.00014569,2]
[331076318,1720066240920,-500.0,0.00014569,2]
[331076319,1720066241060,-500.0,0.00014569,2]
[331076320,1720066241071,-500.0,0.00014569,2]
[331076321,1720066241080,-500.0,0.00014569,2]
[331076322,1720066241089,-681.51,0.00014569,2]
[331076323,1720066241098,-500.0,0.00014569,2]
[331076324,1720066241107,-500.0,0.00014569,2]
[331076325,1720066241116,-500.0,0.00014569,2]
[331076326,1720066241125,-500.0,0.00014569,2]
[331076327,1720066241134,-500.0,0.00014569,2]
[331076328,1720066241144,-770.25,0.00014569,2]
[331076329,1720066241153,-500.0,0.00014569,2]
[331076330,1720066241162,-545.82,0.00014569,2]
[331076331,1720066241171,-500.0,0.00014569,2]
[331076332,1720066241180,-500.0,0.00014569,2]
[331076333,1720066241190,-500.0,0.00014569,2]
[331076334,1720066241199,-500.0,0.00014569,2]
[331076335,1720066241208,-500.0,0.00014569,2]
[331076336,1720066241217,-500.0,0.00014569,2]
[331076337,1720066241227,-618.80056488,0.00014569,2]
[331076338,1720066241236,-500.0,0.00014569,2]
[331076339,1720066241245,-500.0,0.00014569,2]
[331076340,1720066241254,-631.77,0.00014569,2]
[331076341,1720066241263,-500.0,0.00014569,2]
[331076342,1720066241272,-500.0,0.00014569,2]
[331076343,1720066241281,-500.0,0.00014569,2]
[331076344,1720066241291,-500.0,0.00014569,2]
[331076345,1720066241300,-500.0,0.00014569,2]
[331076346,1720066241309,-500.0,0.00014569,2]
[331076347,1720066241319,-720.17,0.00014569,2]
[331076348,1720066241328,-500.0,0.00014569,2]
[331076349,1720066241337,-1764.32,0.00014569,2]
[331076350,1720066241345,-500.0,0.00014569,2]
[331076351,1720066241356,-500.0,0.00014569,2]
[331076352,1720066241366,-500.0,0.00014569,2]
[331076353,1720066241375,-2011.52,0.00014569,2]
[331076354,1720066241384,-500.0,0.00014569,2]
[331076355,1720066241393,-1007.7,0.00014569,2]
[331076356,1720066241402,-500.0,0.00014569,2]
[331076357,1720066241414,-500.0,0.00014569,2]
[331076358,1720066241423,-704.76,0.00014569,2]
[331076359,1720066241434,-500.0,0.00014569,2]
[331076360,1720066241444,-500.0,0.00014569,2]
[331076361,1720066241455,-1441.08,0.00014569,2]
[331076362,1720066241465,-855.47,0.00014569,2]
[331076363,1720066241474,-500.0,0.00014569,2]
[331076364,1720066241483,-647.17,0.00014569,2]
[331076365,1720066241492,-500.0,0.00014569,2]
[331076366,1720066241502,-500.0,0.00014569,2]
[331076367,1720066241511,-3608.51,0.00014569,2]
[331076368,1720066241520,-500.0,0.00014569,2]
[331076369,1720066241529,-376.88745205,0.00014569,2]
[331076370,1720066241538,-500.0,0.00014569,2]
[331076371,1720066241547,-500.0,0.00014569,2]
[331076372,1720066241556,-500.0,0.00014569,2]
[331076373,1720066241566,-500.0,0.00014569,2]
[331076374,1720066241576,-185.76252799,0.00014569,2]
[331076375,1720066241585,-537.48756216,0.00014569,2]
[331076376,1720066241594,-500.0,0.00014569,2]
[331076377,1720066241608,-500.0,0.00014569,2]
[331076378,1720066241617,-500.0,0.00014569,2]
[331076379,1720066241627,-500.0,0.00014569,2]
[331076380,1720066241636,-500.0,0.00014569,2]
[331076381,1720066241647,-500.0,0.00014569,2]
[331076382,1720066241656,-500.0,0.00014569,2]
[331076383,1720066241665,-500.0,0.00014569,2]
[331076384,1720066241675,-500.0,0.00014569,2]
[331076385,1720066241687,-500.0,0.00014569,2]
[331076386,1720066241697,-1216.88,0.00014569,2]
[331076387,1720066241706,-500.0,0.00014569,2]
[331076388,1720066241716,-500.0,0.00014569,2]
[331076389,1720066241725,-500.0,0.00014569,2]
[331076390,1720066241734,-778.7,0.00014569,2]
[331076391,1720066241743,-500.0,0.00014569,2]
[331076392,1720066241752,-3668.47,0.00014569,2]
[331076393,1720066241761,-500.0,0.00014569,2]
[331076394,1720066241771,-521.38,0.00014569,2]
[331076395,1720066241781,-2207.54,0.00014569,2]
[331076396,1720066241790,-517.2815086,0.00014569,2]
[331076397,1720066241802,-500.0,0.00014569,2]
[331076398,1720066241812,-500.0,0.00014569,2]
[331076399,1720066241822,-500.0,0.00014569,2]
[331076400,1720066241831,-500.0,0.00014569,2]
[331076401,1720066241841,-735.49,0.00014573,2]
[331076402,1720066241850,-500.0,0.00014573,2]
[331076403,1720066241859,-500.0,0.00014573,2]
[331076404,1720066241869,-500.0,0.00014573,2]
[331076405,1720066241878,-500.0,0.00014573,2]
[331076406,1720066241887,-3491.44,0.00014573,2]
[331076407,1720066241896,-782.78,0.00014573,2]
[331076408,1720066241907,-500.0,0.00014573,2]
[331076409,1720066241916,-500.0,0.00014573,2]
[331076410,1720066241925,-576.42,0.00014573,2]
[331076411,1720066241935,-500.0,0.00014573,2]
[331076412,1720066241944,-500.0,0.00014573,2]
[331076413,1720066241953,-511.60778027,0.00014573,2]
[331076414,1720066241963,-500.0,0.00014573,2]
[331076415,1720066241972,-500.0,0.00014574,2]
[331076416,1720066241981,-577.92,0.00014574,2]
[331076417,1720066241990,-500.0,0.00014574,2]
[331076418,1720066241999,-500.0,0.00014574,2]
[331076419,1720066242008,-500.0,0.00014574,2]
[331076420,1720066242017,-500.0,0.00014574,2]
[331076421,1720066242027,-500.0,0.00014574,2]
[331076422,1720066242035,-500.0,0.00014574,2]
[331076423,1720066242044,-356.97583644,0.00014574,2]
[331076424,1720066242053,-500.0,0.00014574,2]
[331076425,1720066242062,-500.0,0.00014574,2]
[331076426,1720066242073,-500.0,0.00014574,2]
[331076427,1720066242082,-500.0,0.00014574,2]
[331076428,1720066242091,-500.0,0.00014574,2]
[331076429,1720066242100,-500.0,0.00014574,2]
[331076430,1720066242109,-609.05376527,0.00014574,2]
[331076431,1720066242119,-500.0,0.00014574,2]
[331076432,1720066242127,-503.4872777,0.00014574,2]
[331076433,1720066242136,-500.0,0.00014574,2]
[331076434,1720066242146,-500.0,0.00014574,2]
[331076435,1720066242155,-509.87731984,0.00014574,2]
[331076437,1720066242164,-500.0,0.00014574,2]
[331076438,1720066242173,-500.0,0.00014574,2]
[331076439,1720066242183,-500.0,0.00014574,2]
[331076440,1720066242192,-500.0,0.00014574,2]
[331076441,1720066242201,-500.0,0.00014574,2]
[331076442,1720066242210,-500.0,0.00014574,2]
[331076444,1720066242219,-500.0,0.00014574,2]
[331076445,1720066242229,-500.0,0.00014575,2]
[331076447,1720066242238,-500.0,0.00014575,2]
[331076449,1720066242247,-500.0,0.00014575,2]
[331076450,1720066242256,-8891.61,0.00014575,2]
[331076451,1720066242265,-500.0,0.0001458,2]
[331076452,1720066242275,-500.0,0.0001458,2]
[331076453,1720066242284,-500.0,0.0001458,2]
[331076454,1720066242293,-500.0,0.0001458,2]
[331076455,1720066242302,-500.0,0.0001458,2]
[331076456,1720066242311,-500.0,0.0001458,2]
[331076457,1720066242321,-500.0,0.0001458,2]
[331076458,1720066242330,-577.31,0.0001458,2]
[331076459,1720066242339,-500.0,0.0001458,2]
[331076460,1720066242348,-500.0,0.0001458,2]
[331076461,1720066242357,-500.0,0.0001458,2]
[331076462,1720066242366,-684.73,0.0001458,2]
[331076463,1720066242375,-500.0,0.0001458,2]
[331076464,1720066242383,-423.09555159,0.0001458,2]
[331076466,1720066242393,-500.0,0.0001458,2]
[331076467,1720066242402,-500.0,0.0001458,2]
[331076468,1720066242411,-729.62,0.0001458,2]
[331076469,1720066242420,-534.93767762,0.0001458,2]
[331076470,1720066242429,-562.1,0.0001458,2]
[331076472,1720066242439,-757.94,0.0001458,2]
[331076474,1720066242448,-500.0,0.0001458,2]
[331076475,1720066242457,-500.0,0.0001458,2]
[331076477,1720066242467,-500.0,0.0001458,2]
[331076478,1720066242476,-500.0,0.0001458,2]
[331076479,1720066242484,-500.0,0.0001458,2]
[331076480,1720066242494,-500.0,0.0001458,2]
[331076482,1720066242503,-500.0,0.0001458,2]
[331076484,1720066242512,-500.0,0.00014581,2]
[331076486,1720066242522,-500.0,0.00014581,2]
[331076488,1720066242531,-500.0,0.00014581,2]
[331076490,1720066242540,-2067.31,0.00014581,2]
[331076492,1720066242549,-5865.12,0.00014581,2]
[331076494,1720066242558,-1025.49,0.00014581,2]
[331076495,1720066242567,-2627.63,0.00014581,2]
[331076496,1720066242579,-500.0,0.00014581,2]
[331076497,1720066242588,-640.11,0.00014581,2]
[331076498,1720066242597,-176.58256,0.00014581,2]
[331076499,1720066242611,-151.0,0.00014581,2]
[331076500,1720066242620,-151.0,0.00014581,2]
[331076501,1720066242629,-151.0,0.00014581,2]
[331076502,1720066242639,-151.0,0.00014581,2]
[331076503,1720066242648,-964.57,0.00014581,2]
[331076504,1720066242657,-150.0,0.00014586,2]
[331076505,1720066242666,-413.2161063,0.000146,2]
[331076506,1720066242676,-154.85288975,0.00014677,2]
[331076507,1720066242688,-154.85288975,0.00014677,2]
[331076508,1720066242698,-151.0,0.00014677,2]
[331076509,1720066242707,-11663.91791229,0.00014794,2]
[331076510,1720066242717,-500.0,0.00014832,2]
[331076511,1720066242727,-1593.08,0.00014832,2]
[331076512,1720066242736,-10509.41,0.00014832,2]
[331076513,1720066242745,-1268.06,0.00014832,2]
[331076514,1720066242755,-2393.91,0.00014832,2]
[331076515,1720066242764,-640.92,0.00014832,2]
[331076516,1720066242774,-523.46,0.00014838,2]
[331076517,1720066242783,-500.0,0.00014838,2]
[331076518,1720066242792,-8925.03,0.00014838,2]
[331076519,1720066242803,-500.0,0.00014843,2]
[331076520,1720066242812,-957.95,0.00014843,2]
[331076521,1720066242823,-500.0,0.00014843,2]
[331076522,1720066242832,-500.0,0.00014843,2]
[331076523,1720066242841,-500.0,0.00014843,2]
[331076524,1720066242851,-500.0,0.00014843,2]
[331076525,1720066242860,-1406.69,0.00014843,2]
[331076526,1720066242869,-500.0,0.00014843,2]
[331076527,1720066242878,-500.0,0.00014843,2]
[331076528,1720066242887,-451.78659027,0.00014843,2]
[331076529,1720066242896,-500.0,0.00014843,2]
[331076530,1720066242905,-801.08,0.00014843,2]
[331076531,1720066242914,-500.0,0.00014843,2]
[331076532,1720066242923,-1167.61,0.00014843,2]
[331076533,1720066242932,-500.0,0.00014843,2]
[331076534,1720066242941,-500.0,0.00014843,2]
[331076535,1720066242951,-709.23,0.00014843,2]
[331076536,1720066242960,-500.0,0.00014843,2]
[331076537,1720066242969,-500.0,0.00014843,2]
[331076538,1720066242978,-616.88,0.00014843,2]
[331076539,1720066242987,-508.28869856,0.00014843,2]
[331076540,1720066242997,-500.0,0.00014843,2]